Cogmind - Beta 13 @@@ ROGUE MODE // 2024.04.09 @ 17:12:38 Player: Rocketboy Result: Self-destructed Performance ------------- Evolutions (2) 1000 Regions Visited (3) 600 Robots Destroyed (15) 75 Value Destroyed (231) 231 Prototype IDs (0) 0 Alien Tech Used (0) 0 Bonus (0) 0 TOTAL SCORE: 1906 Bonus ------- None Cogmind --------- Core Integrity 521/550 Matter 275/300 Energy 78/100 System Corruption 0% Temperature Cool (0) Movement Walking (120) Location -8/Materials Parts ------- > --- POWER (1) -------- (None) > --- PROPULSION (4) --- Aluminum Leg > --- UTILITY (3) ------ Small Storage Unit Makeshift System Shield > --- WEAPON (3) ------- (None) > --- INVENTORY (8) ---- Subdweller Optics Sensor Array Improved Terrain Scanner Peak State ------------ > --- POWER ------------ (None) > --- PROPULSION ------- Aluminum Leg Aluminum Leg > --- UTILITY ---------- Small Storage Unit Terrain Scan Processor > --- WEAPON ----------- Riot Gun Barrage Gun > --- INVENTORY -------- Aluminum Leg Sensor Array Improved Terrain Scanner Scrap Shield Makeshift System Shield Flamer [Rating: 12] Favorites ----------- Power Ion Engine Engine Ion Engine Propulsion Aluminum Leg Leg Aluminum Leg Utility Small Storage Unit Device Improved Terrain Scanner Storage Small Storage Unit Processor Terrain Scan Processor Hackware Makeshift System Shield Protection Scrap Shield Weapon Small Laser Energy Gun Small Laser Ballistic Gun Barrage Gun Launcher Grenade Launcher Special Weapon Flamer Build | -11 -10 -10 -8 ------- Run | Yrd Mat Sub Mat Slots Evolved 4 | . . . 4 Power . | . . . . Propulsion 2 | . . . 2 Utility 1 | . . . 1 Weapon 1 | . . . 1 Parts Attached 18 | 7 3 4 4 Power 1 | 1 . . . Engine 1 | 1 . . . Core . | . . . . Reactor . | . . . . Propulsion 3 | 2 . . 1 Treads . | . . . . Leg 3 | 2 . . 1 Wheel . | . . . . Hover . | . . . . Flight . | . . . . Utility 7 | 2 1 2 2 Device 2 | 1 . 1 . Storage 2 | 1 . 1 . Processor 1 | . 1 . . Hackware 1 | . . . 1 Protection 1 | . . . 1 Artifact . | . . . . Weapon 7 | 2 2 2 1 Energy Gun 4 | 2 1 1 . Energy Cannon . | . . . . Ballistic Gun 1 | . . 1 . Ballistic Cannon . | . . . . Launcher 1 | . 1 . . Special Weapon 1 | . . . 1 Impact Weapon . | . . . . Slashing Weapon . | . . . . Piercing Weapon . | . . . . Special Melee Weapon . | . . . . Unidentified Prototypes . | . . . . Parts Lost 8 | . 1 4 3 Power 1 | . 1 . . Propulsion 2 | . . 1 1 Utility 1 | . . . 1 Weapon 4 | . . 3 1 Highest Loss Streak 3 | . 1 2 3 To Critical Strikes . | . . . . Average Slot Usage (%) 83 | . 99 78 34 Engine 4 | . 13 . . Leg 23 | . 28 21 15 Device 8 | . 14 5 . Storage 10 | . 4 13 9 Processor 8 | . 9 8 . Energy Gun 17 | . 26 14 . Ballistic Gun 4 | . . 7 . Launcher 4 | . 1 6 . Naked Turns . | . . . . Heaviest Build 25 | 14 14 12 25 Greatest Support 20 | 20 20 20 20 Greatest Overweight (x) 2 | . . 1 2 Average Overweight (x) . | . . . 1 Largest Inventory Capacity 8 | 8 8 8 8 Average Capacity 7 | 7 5 7 8 Most Carried 8 | 1 5 8 8 Average Carried 5 | . 3 6 4 Final Capacity 8 | 8 5 8 8 Final Carried 8 | 1 5 8 3 Class Distribution -------------------- 100% | Mutant Dominant Class ---------------- Mutant | -10/Materials Mutant | -10/Subcaves Mutant | -8/Materials Resources | -11 -10 -10 -8 ----------- Run | Yrd Mat Sub Mat Matter Collected 425 | 270 10 145 . Remotely . | . . . . Salvage Created 461 | 151 262 48 . Parts 34 | 12 20 2 . Haulers Intercepted . | . . . . Recyclers Shooed . | . . . . Parts Field Recycled . | . . . . Retrieved Matter . | . . . . Parts Self-Destructed 11 | . . 11 . Prevented . | . . . . Kills | -11 -10 -10 -8 ------- Run | Yrd Mat Sub Mat Combat Hostiles Destroyed 5 | . 3 2 . Guns 4 | . 3 1 . AOE 1 | . . 1 . Classes Destroyed 8 | 3 3 2 . Worker 2 | 2 . . . Builder 3 | . 3 . . Tunneler 2 | 2 . . . Recycler 2 | 1 1 . . Watcher 1 | . 1 . . Swarmer 1 | . . 1 . Grunt 3 | . 3 . . Subdweller 1 | . . 1 . Best Kill Streak 3 | 3 3 1 . Combat Bots Only 2 | . 2 1 . Max Kills in Single Turn 1 | 1 1 1 . Gunslinging . | . . . . Exploded 1 | . . 1 . Melee . | . . . . Uniques/NPCs Destroyed . | . . . . Combat | -11 -10 -10 -8 -------- Run | Yrd Mat Sub Mat Hostile Shots Fired 62 | . 4 26 32 Missed 16 | . 2 5 9 Damage Taken 886 | . 147 422 317 Core 61 | . 32 . 29 Absorbed by Shields . | . . . . Core Remaining (%) 93 | 100 . 87 . Volleys Fired 46 | 11 20 13 2 Largest 2 | 2 2 2 1 Hottest 100 | 80 80 80 100 Shots Fired 90 | 22 40 26 2 Gun 83 | 22 38 23 . Cannon . | . . . . Launcher 5 | . 2 3 . Special 2 | . . . 2 Kinetic 10 | . . 10 . Thermal 34 | 11 21 . 2 Explosive 5 | . 2 3 . Electromagnetic 41 | 11 17 13 . Robot Hit Streak 6 | 4 5 6 1 Robot Miss Streak 4 | 2 4 4 1 Penetration Max . | . . . . Secondary Targets . | . . . . Shots Hit Robots 47 | 12 19 15 1 Core Hits 21 | 5 11 4 1 Critical Kills . | . . . . Critical Parts Destroyed . | . . . . Critical Strikes . | . . . . Melee Attacks . | . . . . Impact . | . . . . Slashing . | . . . . Piercing . | . . . . Sneak Attacks . | . . . . Combat Hostiles . | . . . . Follow-up Attacks . | . . . . Damage Inflicted 789 | 179 346 252 12 Guns 639 | 179 249 211 . Cannons . | . . . . Explosions 138 | . 97 41 . Melee . | . . . . Ramming . | . . . . Kinetic 103 | . . 103 . Thermal 245 | 66 167 . 12 Explosive 54 | . 13 41 . Electromagnetic 387 | 113 166 108 . Impact . | . . . . Slashing . | . . . . Piercing . | . . . . Highest Corruption . | . . . . Average Corruption . | . . . . Corruption Purged . | . . . . Corruption Blocked . | . . . . Overload Shots . | . . . . Overflow Damage . | . . . . Projectiles . | . . . . Explosions . | . . . . Melee . | . . . . Knockbacks . | . . . . Impact . | . . . . Kinetic . | . . . . Secondary . | . . . . Self-Inflicted Damage 126 | . 126 . . Shots 5 | . 5 . . Rammed . | . . . . Targets Rammed . | . . . . Kicked . | . . . . Crushed . | . . . . Highest Temperature 90 | 90 90 . 30 Average Temperature 33 | 35 34 . 17 Received Heat Transfer 222 | . 12 120 90 Siege Activations . | . . . . Robots Corrupted . | . . . . Combat Hostiles . | . . . . Parts Fried 3 | . . 3 . Impact Corruptions . | . . . . Robots Melted . | . . . . Combat Hostiles . | . . . . Parts Melted 1 | . . 1 . Heat Transferred 555 | 150 325 . 80 Parts Sabotaged . | . . . . Parts Stolen . | . . . . Parts Stripped . | . . . . Power Chain Reactions 3 | . 3 . . Alert | -11 -10 -10 -8 ------- Run | Yrd Mat Sub Mat Peak Influence 143 | 25 143 . 30 Initial 16 | . 16 . . Average 51 | 5 67 . 18 Maximum Alert Level . | . . . . Low Security (%) 100 | 100 100 . 100 Level 1 . | . . . . Level 2 . | . . . . Level 3 . | . . . . Level 4 . | . . . . Level 5 . | . . . . High Security . | . . . . Max Security . | . . . . Squads Dispatched 3 | . 2 . 1 Investigation . | . . . . Extermination . | . . . . Reinforcement 3 | . 2 . 1 Assault . | . . . . Garrison . | . . . . Intercept . | . . . . Searches Triggered . | . . . . Construction Impeded . | . . . . Haulers Reinforced . | . . . . Active Scanning Responses . | . . . . Cargo Convoy Interrupts . | . . . . Stealth | -11 -10 -10 -8 --------- Run | Yrd Mat Sub Mat Distress Signals 1 | . 1 . . Communications Jammed . | . . . . Distress Signals . | . . . . Times Spotted 14 | . 6 5 3 Peak Tracking Total 3 | . 2 2 3 Tactical Retreats 1 | . . 1 . Traps | -11 -10 -10 -8 ------- Run | Yrd Mat Sub Mat Traps Triggered . | . . . . Indirectly . | . . . . Trap Hack Attempts . | . . . . Triggered . | . . . . Disarmed . | . . . . Reprogrammed 6 | . 6 . . Reused . | . . . . Traps Extracted . | . . . . Installed 1 | . . . 1 Triggered . | . . . . Most Traps Carried 1 | . . 1 1 Machines | -11 -10 -10 -8 ---------- Run | Yrd Mat Sub Mat Machines Disabled 2 | . 2 . . Max in Single Turn 2 | . 2 . . Machines Repaired . | . . . . Machines Dismantled . | . . . . Machines Sabotaged . | . . . . Overloaded Fab Kills . | . . . . Hacking | -11 -10 -10 -8 --------- Run | Yrd Mat Sub Mat Machines Accessed 3 | . 3 . . Terminals 3 | . 3 . . Fabricators . | . . . . Repair Stations . | . . . . Recycling Units . | . . . . Scanalyzers . | . . . . Garrison Access . | . . . . Total Hacks 11 | . 11 . . Successful 6 | . 6 . . Failed 5 | . 5 . . Catastrophic . | . . . . Database Lockouts . | . . . . Manual 10 | . 10 . . Terminals 11 | . 11 . . Fabricators . | . . . . Repair Stations . | . . . . Recycling Units . | . . . . Scanalyzers . | . . . . Garrison Access . | . . . . Terminal Hacks 2 | . 2 . . Terminal Index 1 | . 1 . . Reprogram Traps 1 | . 1 . . Fabricator Hacks . | . . . . Repair Station Hacks . | . . . . Recycling Unit Hacks . | . . . . Scanalyzer . | . . . . Garrison Access Hacks . | . . . . Unauthorized Hacks 4 | . 4 . . Terminals 4 | . 4 . . Track 1 | . 1 . . Botnet 3 | . 3 . . Fabricators . | . . . . Repair Stations . | . . . . Recycling Units . | . . . . Scanalyzers . | . . . . Garrison Access . | . . . . Data Cores Recovered . | . . . . Used . | . . . . Hacking Detections 3 | . 3 . . Full Trace Events . | . . . . Feedback Events . | . . . . Feedback Blocked . | . . . . Robot Schematics Acquired . | . . . . Robots Built . | . . . . Authchips . | . . . . Time . | . . . . Total Robot Build Rating . | . . . . Part Schematics Acquired . | . . . . Parts Built . | . . . . Authchips . | . . . . Time . | . . . . Total Part Build Rating . | . . . . Parts Repaired . | . . . . Time . | . . . . Parts Recycled . | . . . . Recycled Matter . | . . . . Retrieved Matter . | . . . . Retrieved Components . | . . . . Parts Scanalyzed . | . . . . Part Schematics Acquired . | . . . . Parts Damaged . | . . . . Bothacking | -11 -10 -10 -8 ------------ Run | Yrd Mat Sub Mat Used RIF Installer . | . . . . Robots Hacked . | . . . . Non-combat . | . . . . Combat . | . . . . Robot Hacks Applied . | . . . . Relay Couplers Released . | . . . . Fabnet Peak Effective % . | . . . . Robots Rewired . | . . . . Allies Hacked . | . . . . Hacks Repelled . | . . . . Allies | -11 -10 -10 -8 -------- Run | Yrd Mat Sub Mat Total Allies . | . . . . Largest Group . | . . . . Highest-Rated Group . | . . . . Highest-Rated Ally . | . . . . Total Orders . | . . . . Ally Attacks . | . . . . Total Damage . | . . . . Kills . | . . . . Allies Corrupted . | . . . . Allies Melted . | . . . . Intel | -11 -10 -10 -8 ------- Run | Yrd Mat Sub Mat Robot Analysis Total . | . . . . Derelict Logs Recovered . | . . . . Drone Launches . | . . . . Drone Recoveries . | . . . . Exploration | -11 -10 -10 -8 ------------- Run | Yrd Mat Sub Mat Turns Passed 1451 | 115 446 834 56 Spaces Moved 895 | 62 288 524 21 Core 4 | 4 . . . Treads . | . . . . Legs 891 | 58 288 524 21 Wheels . | . . . . Hover . | . . . . Flight . | . . . . Fastest Speed 50 | 50 120 120 120 Average Speed 135 | 115 120 144 203 Slowest Speed 260 | 120 120 190 260 Overloaded Moves . | . . . . Propulsion Burnouts . | . . . . Robots Hopped . | . . . . Cave-ins Triggered . | . . . . Exploration Rate (%) 19 | 5 38 29 4 Regions Visited 3 Branch Regions 1 Pre-discovered Areas . | . . . . Known Exits Taken . | . . . . Unknown Exits Taken 3 | 1 1 1 . Scrap Searched 1 | . . 1 . Spaces Dug 9 | . 9 . . Terrain Destroyed 38 | . 22 16 . Melee . | . . . . Projectile . | . . . . AOE 38 | . 22 16 . Terrain Rammed . | . . . . Walls Destroyed . | . . . . Machines Disabled . | . . . . Actions | -11 -10 -10 -8 --------- Run | Yrd Mat Sub Mat Total 1037 | 80 348 578 31 Wait 61 | . 33 28 . Move 892 | 61 287 523 21 Hop . | . . . . Pick Up 11 | 1 3 6 1 Fast Attach 10 | 7 2 1 . Attach 6 | . . 2 4 Detach 1 | . 1 . . Swap 2 | . 1 1 . Drop 7 | . 1 4 2 Fire 46 | 11 20 13 2 Melee . | . . . . Ram . | . . . . Kick . | . . . . Crush . | . . . . Escape Stasis . | . . . . Rewire . | . . . . Trap 1 | . . . 1 Miscellaneous . | . . . . Route ------- -11/Scrapyard -10/Materials -10/Subcaves -8/Materials History --------- Turn | Location | Event 28 | -11/Scrapyard | Discovered new exit (range 16) 116 | -11/Scrapyard | Entered Materials 307 | -10/Materials | Build established: Mutant 318 | -10/Materials | Discovered new exit (range 16) 562 | -10/Materials | Entered Subcaves 684 | -10/Subcaves | Ambushed by swarm of Subdwellers 710 | -10/Subcaves | Discovered new exit (range 14) 729 | -10/Subcaves | Lost 3 allies 762 | -10/Subcaves | Shifting Twisted Machinery released Riot Gun 783 | -10/Subcaves | Shifting Twisted Machinery released Spk. Treads 1396 | -10/Subcaves | Entered Materials 1396 | -8/Materials | Evolved 4 slots: Propulsion x2, Utility x1, Weapon x1 1452 | -8/Materials | Self-destructed Last Messages --------------- 0R-O4M(R): "ECOKILL!" PARAMETERS=PROPULSION+2,UTILITY+1,WEAPON+1 LOCATION=UNKNOWN GOAL=ESCAPE Dropped Imp. Terrain Scanner. O-16 Technician: "IFF HANDSHAKE FAILED. SECURING TERMINAL." ALERT: Hostiles spotted, dispatching reinforcements to Terminal M003. Acquired Imp. Terrain Scanner. Dropped Shrapnel Trap. Installed Shrapnel Trap. Aluminum Leg destroyed. T-07 Excavator is excavating. U-05 Engineer builds a Door. T-07 Excavator is excavating. Scrap Shield destroyed. Penetrated by Slug. Slug penetrates Wall. Flamer destroyed. Map ----- +----------------------------------------------------+ | ????????????????????????????????????????????????? | | ????????????????????????????????????????????????? | | ????????????????????????????????????????????????? | | ????????????????????????????????????????????????? | | ????????????????????????????????????????????????? | | ????????????????????????????????????????????????? | | ????????????????????????????????????????????????? | | ????????????????????????????????????????????????? | | ????????????????????????????????????????????????? | | ????????????????????????????????????????????????? | | ????????????????????????????????????????????????? | | ????????????????????????????????????????????????? | | ????????????????????????????????????????????????? | | ????????????????????????????????????????????????? | | ?????????????????????????????????##?????????????? | | ????????????????????????????????? ??????????????? | | ???????????????????????????????? ???????????????? | | ??????????????????????????????? ????????????????? | | ?????????????????????????????? #????????????????? | | ????????????????????????????? #????????????????? | | ???????????????????????????? #????????????????? | | ???????????????????????????# ##???????????????? | | ?????####+#############+### #???????????????? | | ?????# o #???????????????? | | ?????# Yu #???????????????? | | ?????# ^ @ u; ] ] ????????? | | ?????###########+######a### ### "???????? | | ??????????????T" #?? u ?## ###???????????????? | | ????????????? *#? [[! !#??? #????????????????? | | ???????????? ## [!! #????#????????????????? | | ???????????# ==! ## [!! #?????????????????????? | | ???????????# =!! ## #?????????????????????? | | ???????????# =!! ## """ #?????????????????????? | | ???????????#########! """ #?????????????????????? | | ???????????????????#? """ #?????????????????????? | | ???????????????????? ??? #?????????????????????? | | ????????????????????= ??? #?????????????????????? | | ???????????????????? ??? #?????????????????????? | | ???????????????????? ?????#?????????????????????? | | ????????????????????????????????????????????????? | | ????????????????????????????????????????????????? | | ????????????????????????????????????????????????? | | ????????????????????????????????????????????????? | | ????????????????????????????????????????????????? | | ????????????????????????????????????????????????? | | ????????????????????????????????????????????????? | | ????????????????????????????????????????????????? | | ????????????????????????????????????????????????? | | ????????????????????????????????????????????????? | | ????????????????????????????????????????????????? | +----------------------------------------------------+ Best States ------------- Heat Dissipation 31 Energy Generation 10 Energy Capacity 250 Matter Stores 300 Matter Capacity 300 Sight Range 16 Terrain Scan Range 16 Terrain Scan Density 85 Armor Coverage 800 Evasion (%) 55 Item Schematics ----------------- None Robot Schematics ------------------ None Fabricated ------------ Nothing Alien Tech Used ----------------- None Achievements -------------- None Challenges ------------ None Game ------ Seed AblativePotentialPit Manual? 0 Play Time 00:13:07 Cumulative 28.1 hours Start 2024.04.09 @ 17:00:46 End 2024.04.09 @ 17:12:38 Sessions 1 Manual Loads 0 Difficulty Rogue Special Mode None Game No. 44 Rogue 44 Adventurer 0 Explorer 0 Win Type - Total 0 Types 0/0/0/0/0/0/0/0/0 Lore% 21 Gallery% 35 Achievement% 28 Wizard Run 0 Options --------- Layout 1 ASCII 0 Keyboard 0 Movement Mouse Keybinds 0 Fullscreen 1 Font 32/SmallcapsGlow Map View 50x35 Zoom Use 0% Tactical HUD 0 Map Filters NONE Filters NONE Steam 1 RUN: a4fdabe9-a3af-4b99-a379-6d29da9c4c28